[Event "Division I"]
[Site "Chess.com"]
[Date "2023.08.30"]
[Round "1"]
[White "Carlsen, Magnus"]
[Black "Tabatabaei, M Amin"]
[Result "1-0"]
[WhiteElo "2928"]
[BlackElo "2768"]
[ECO "C77"]
[EventDate "2023.??.??"]
[Annotator "rafael"]
[PlyCount "97"]
[Beauty "7082803734033"]
[EventType "game"]
[TimeControl "900+3"]

1.e4 e5 2.Nf3 Nc6 3.Bb5 a6 4.Ba4 Nf6 5.d3 {Carlsen has plenty of experience with this flexible move that avoids the Open Variation (where Black takes the e4-pawn).} 5...Bc5 {The problem with 5.d3 is that Black can develop the bishop to this active square.} 6.c3 b5 7.Bb3 d6 8.Bg5 {This pin usually sharpens the game as Black is invited to play h6-g5.} ( 8.O-O {Carlsen chose this move in one of his games against Keymer in the World Cup.} ) 8...h6 9.Bh4 Bb6 {A useful prophylactic move, anticipating White's d-pawn advance.} 10.Nbd2 ( 10.a4 {was played in an important game in 2022:} 10...Rb8 11.axb5 axb5 12.Na3 g5 13.Bg3 Na5 14.Bc2 b4 $6 {[%c_effect b4;square;b4;type;Inaccuracy;persistent;true]} ( 14...Bd7 {is better.} ) 15.cxb4 Nc6 16.Ba4 {with an advantage for White in Praggnanandhaa-Carlsen, Chessable Masters 2022.} ) 10...g5 11.Bg3 Qe7 ( 11...Na5 {is also possible:} 12.Bc2 Nh5 13.a4 Rb8 14.b4 Nxg3 15.hxg3 Nc6 16.Nf1 Qf6 {with a balanced middlegame in Carlsen-Ding, Norway Chess (blitz) 2019.} ) 12.a4 Rb8 13.axb5 axb5 14.Nf1 $1 {[%c_effect f1;square;f1;type;GreatFind;persistent;true] One advantage of not being castled yet is that the knight can be maneuvered immediately to the e3-square.} 14...Be6 15.Ne3 Bxe3 {A good and practical decision, getting rid of the problems that this knight can generate. That said, it's possible to delay this capture as well.} ( 15...O-O 16.O-O Bxb3 17.Qxb3 Qe6 18.Qc2 Ne7 {with an acceptable position.} ) 16.fxe3 O-O ( 16...Bxb3 {is more accurate:} 17.Qxb3 Qe6 {Now if White exchanges queens, Black's king is already in the center.} 18.Qc2 O-O {with chances for both sides.} ) 17.O-O Ra8 $6 {[%c_effect a8;square;a8;type;Inaccuracy;persistent;true]} ( 17...Bxb3 $1 {[%c_effect b3;square;b3;type;GreatFind;persistent;true] is better:} 18.Qxb3 Qe6 {Here White can try to exchange queens:} 19.Qxe6 fxe6 20.Ra6 {with a slight pressure in the endgame.} ) 18.Rxa8 Rxa8 19.Nh4 $1 {[%c_effect h4;square;h4;type;GreatFind;persistent;true] A strong move, using tactics to bring the knight to f5.} 19...Bg4 ( 19...gxh4 $2 {[%c_effect h4;square;h4;type;Mistake;persistent;true] The knight cannot be captured due to the pin.} 20.Bxh4 ) 20.Qe1 Na5 $6 {[%c_effect a5;square;a5;type;Inaccuracy;persistent;true]} ( 20...Kg7 {is the lesser evil, although White keeps the pressure after} 21.Nf5+ Bxf5 22.Rxf5 ) 21.Bd1 Bxd1 {The f5-square becomes very weak now. Maybe it's better to retreat the bishop, although after} ( 21...Bd7 22.Nf5 Bxf5 23.Rxf5 {White will follow with h2-h4 and a lot of pressure on the kingside.} ) 22.Nf5 Qe6 23.Qxd1 Kh7 24.h4 $6 {[%c_effect h4;square;h4;type;Inaccuracy;persistent;true] This is Carlsen's only inaccuracy in the game.} ( 24.d4 {is better, immediately putting pressure on the center. The e4-pawn cannot be captured:} 24...Nxe4 ( 24...exd4 $2 {[%c_effect d4;square;d4;type;Mistake;persistent;true] is also bad:} 25.Nxd4 Qe7 26.Qc2 {with a winning initiative.} ) 25.d5 $1 {[%c_effect d5;square;d5;type;GreatFind;persistent;true]} 25...Qf6 ( 25...Qg6 26.Ne7 $1 {[%c_effect e7;square;e7;type;GreatFind;persistent;true]} ) 26.Qc2 {Black's position collapses.} ) ( 24.Qa1 $5 {[%c_effect a1;square;a1;type;Interesting;persistent;true] is also very interesting, pinning the knight on a5.} ) 24...Rg8 $6 {[%c_effect g8;square;g8;type;Inaccuracy;persistent;true] Tabatabaei misses the chance to come back to the game.} ( 24...Nb3 $1 {[%c_effect b3;square;b3;type;GreatFind;persistent;true] Prepares both ...Ra1 and the knight maneuver back to the defense with ...Nc5-d7.} ) 25.hxg5 Rxg5 ( 25...hxg5 {doesn't help:} 26.Qf3 Rg6 27.Ra1 $1 {[%c_effect a1;square;a1;type;GreatFind;persistent;true] The rook enters the game with decisive effect. A nice variation continues:} 27...Nc6 28.Ra6 $1 {[%c_effect a6;square;a6;type;GreatFind;persistent;true]} 28...Ne7 29.Bxe5 $1 {[%c_effect e5;square;e5;type;GreatFind;persistent;true]} 29...Qxe5 30.Qh3+ Kg8 31.Ra8+ {winning for White.} ) 26.Bh4 Rg6 27.b4 $1 {[%c_effect b4;square;b4;type;GreatFind;persistent;true]} 27...Nc6 28.Qf3 Ng8 29.d4 $1 {[%c_effect d4;square;d4;type;GreatFind;persistent;true] Carlsen conducts the game with his typical precision. Black has too many weaknesses, and his pieces are passive.} 29...exd4 30.exd4 Qc4 31.Ng3 $1 {[%c_effect g3;square;g3;type;GreatFind;persistent;true] A nice repositioning of the knight.} 31...f6 32.Nh5 Qf7 33.e5 $1 {[%c_effect e5;square;e5;type;GreatFind;persistent;true] Attacking both the f6-pawn and the c6-knight.} 33...Nce7 34.e6 ( 34.exf6 {is also good.} ) 34...Qxe6 ( 34...Qf8 {Here a nice winning line is} 35.Nxf6+ Nxf6 36.Bxf6 Ng8 37.Qe4 $1 {[%c_effect e4;square;e4;type;GreatFind;persistent;true]} 37...Nxf6 38.e7 $1 {[%c_effect e7;square;e7;type;GreatFind;persistent;true]} 38...Qf7 39.Rxf6 $1 {[%c_effect f6;square;f6;type;GreatFind;persistent;true] and the pawn promotes.} ) 35.Nf4 Qf7 36.Nxg6 Kxg6 37.Qd3+ Kg7 38.Qxb5 {The rest is trivial for the world's best player.} 38...Ng6 39.Qh5 Qc4 40.Rf3 Qe2 41.Kh2 Qe4 42.Bf2 N8e7 43.Re3 Qf4+ 44.Kg1 c6 45.c4 d5 46.c5 Nf5 47.Rf3 Qc1+ 48.Kh2 Nfe7 49.Be3 1-0

[Event "E World Cup 2023"]
[Site "Chess.com"]
[Date "2023.08.03"]
[Round "2"]
[White "Mamedyarov, Shakhriyar"]
[Black "Tin, Jingyao"]
[Result "0-1"]
[WhiteElo "2742"]
[BlackElo "2573"]
[ECO "D30"]
[EventDate "2023.??.??"]
[Annotator "rafael"]
[PlyCount "80"]
[Beauty "7631888457300"]
[EventType "team-tourn"]
[EventCountry "FID"]
[TimeControl "40/5400+30:1800+30"]

1.d4 d5 2.c4 e6 3.Nf3 a6 {A modern way of playing the Queen's Gambit.} 4.Bg5 ( 4.Nc3 dxc4 $1 {[%c_effect c4;square;c4;type;GreatFind;persistent;true] This shows the idea of playing ...a7-a6: the pawn can be defended now with …b7-b5.} ) ( 4.cxd5 {is the main move:} 4...exd5 5.Nc3 Nf6 {with a lot of opening theory.} ) 4...Be7 5.Bxe7 Qxe7 6.e3 ( 6.Nbd2 {It's always possible to prepare the development of the bishop on g2 with} 6...Nf6 7.g3 ) 6...Nf6 7.Nbd2 ( 7.Nc3 {gave nothing for White in this high-profile blitz game:} 7...O-O 8.Rc1 Rd8 9.Qc2 dxc4 10.Bxc4 c5 {with equality in Nakamura-Carlsen, Abidjan (blitz) 2019.} ) 7...O-O 8.Rc1 Nc6 $5 {[%c_effect c6;square;c6;type;Interesting;persistent;true] Usually this is not a good square for the knight in similar pawn structures, but Black has a specific idea: to prepare …e6-e5.} 9.cxd5 {This avoids Black's plan at the cost of giving freedom to the c8-bishop.} ( 9.Bd3 {is critical:} 9...e5 ( 9...Rd8 10.O-O e5 11.cxd5 Nxd5 12.Rxc6 $1 {[%c_effect c6;square;c6;type;GreatFind;persistent;true] A typical exchange sacrifice.} 12...bxc6 13.Nxe5 {with excellent compensation.} ) 10.cxd5 Nxd5 11.Be4 Rd8 12.Rxc6 $1 {[%c_effect c6;square;c6;type;GreatFind;persistent;true]} 12...bxc6 13.Nxe5 {White has compensation for the exchange in this complicated position. This was played in Krush-Avramidou, Chennai (Ol) 2022.} ) 9...exd5 10.Qb3 {A new move that doesn't offer anything special for White.} ( 10.Be2 Na7 $5 {[%c_effect a7;square;a7;type;Interesting;persistent;true] A typical idea: Black wants to play c6 and then Nb5-d6.} 11.O-O c6 {Sychev-Vallejo Pons, Moscow 2015.} ) 10...Qd6 {Not the best reaction.} ( 10...Na7 $5 {[%c_effect a7;square;a7;type;Interesting;persistent;true] The same plan can be tried here as well.} ) ( 10...Bf5 {is also good:} 11.Be2 ( 11.Qxb7 $2 {[%c_effect b7;square;b7;type;Mistake;persistent;true] is dangerous after} 11...Nb4 $1 {[%c_effect b4;square;b4;type;GreatFind;persistent;true]} ) 11...Nd8 {followed by c6 and Ne6, with equality.} ) 11.Bd3 Rb8 12.h3 ( 12.Qc3 {is a good move, preventing the c6-knight from moving and preparing Ne5 or Qc5.} ) 12...Ne7 13.g4 $5 {[%c_effect g4;square;g4;type;Interesting;persistent;true] A typical move of Mamedyarov's aggressive style. He starts play on the kingside even though his king cannot go to the other flank anymore.} 13...c6 14.Ne5 ( 14.Qc2 {is possibly even better, forcing Black to create some weakness due to the threat of g5.} ) 14...Nd7 ( 14...b6 $5 {[%c_effect b6;square;b6;type;Interesting;persistent;true] This is an interesting move, preparing …c6-c5 with counterplay.} ) 15.f4 Kh8 $6 {[%c_effect h8;square;h8;type;Inaccuracy;persistent;true]} ( 15...b6 {is necessary as Black needs to react quickly.} 16.Qc2 Qh6 {with complicated play.} ) 16.Qc2 ( 16.Bb1 $1 {[%c_effect b1;square;b1;type;GreatFind;persistent;true] is even stronger, preparing to bring the queen to d3 with a strong attack.} ) 16...f6 ( 16...Nxe5 {It's difficult to play this move, since White's pawns look very menacing. The computer, however, is not so scared.} 17.dxe5 Qh6 {A possible continuation is:} 18.Qc5 Re8 19.f5 b6 20.Qd4 c5 21.Qf4 Nc6 22.Nf3 ( 22.g5 $2 {[%c_effect g5;square;g5;type;Mistake;persistent;true] is bad due to} 22...Nxe5 $1 {[%c_effect e5;square;e5;type;GreatFind;persistent;true]} ) 22...Qxf4 23.exf4 {with a strange endgame where I prefer White.} ) 17.Nef3 g5 $6 {[%c_effect g5;square;g5;type;Inaccuracy;persistent;true] A brave (or crazy) move $1} ( 17...g6 {is objectively better, although White has a clear advantage.} ) 18.O-O $6 {[%c_effect g1;square;g1;type;Inaccuracy;persistent;true] White has many tempting options.} ( 18.Bxh7 {is not clear after} 18...gxf4 ) ( 18.fxg5 Qg3+ 19.Kd1 fxg5 {and now capturing on g5 allows counterplay after} 20.Nxg5 $6 {[%c_effect g5;square;g5;type;Inaccuracy;persistent;true]} 20...h6 21.Ne6 Rf2 ) ( 18.f5 $1 {[%c_effect f5;square;f5;type;GreatFind;persistent;true] is the most accurate. If White manages to play h3-h4, the attack is decisive.} 18...b6 ( 18...Qg3+ 19.Kd1 $1 {[%c_effect d1;square;d1;type;GreatFind;persistent;true] White's plan is Be2-Nh1 and then h4. His position is much better.} ( 19.Kf1 c5 $1 {[%c_effect c5;square;c5;type;GreatFind;persistent;true]} 20.dxc5 Nc6 {gives Black some hope.} ) ) 19.Nf1 c5 20.Qf2 {[%cal Bh3h4]} ) 18...gxf4 19.exf4 Qxf4 20.Rce1 $6 {[%c_effect e1;square;e1;type;Inaccuracy;persistent;true]} ( 20.Kg2 {gives good compensation for the pawn after} 20...Qh6 21.Rce1 ) 20...Rf7 ( 20...Qg3+ {is also possible:} 21.Kh1 Rf7 ( 21...Qxh3+ $6 {[%c_effect h3;square;h3;type;Inaccuracy;persistent;true] This is too greedy:} 22.Nh2 Rf7 23.Nf3 $1 {[%c_effect f3;square;f3;type;GreatFind;persistent;true] Preparing g4-g5.} ) ) 21.Rf2 ( 21.Kg2 ) 21...Nf8 22.Nf1 Rg7 {It's clear that Mamedyarov didn't conduct the initiative in the best way.} 23.Qd2 Ne6 ( 23...Qxd2 $6 {[%c_effect d2;square;d2;type;Inaccuracy;persistent;true] is a mistake:} 24.N3xd2 Rf7 25.Ng3 {with a good position for White. The f6-pawn is weak.} ) 24.Re3 Qd6 25.Bc2 ( 25.Nh4 {is the best move, according to the computer. This is a sign that the position is already difficult to play for White.} ) 25...Bd7 {Black has a big advantage.} 26.Nh4 Ng5 $1 {[%c_effect g5;square;g5;type;GreatFind;persistent;true]} 27.Kh1 b6 $1 {[%c_effect b6;square;b6;type;GreatFind;persistent;true] Tin prepares c6-c5. He is a pawn up and White has many weaknesses.} 28.b4 c5 29.bxc5 bxc5 30.dxc5 Qxc5 31.Rxf6 $2 {[%c_effect f6;square;f6;type;Mistake;persistent;true]} ( 31.Qc3 {White's best chance is to seek salvation in an endgame a pawn down.} ) 31...d4 $1 {[%c_effect d4;square;d4;type;GreatFind;persistent;true]} 32.Rb3 Rc8 33.Bd3 ( 33.Bb1 {is also losing after} 33...Be6 34.Rg3 Nd5 35.Rf2 Nc3 $1 {[%c_effect c3;square;c3;type;GreatFind;persistent;true]} ) 33...Nxh3 34.Bxa6 Bc6+ 35.Ng2 Rxg4 $4 {[%c_effect g4;square;g4;type;Blunder;persistent;true] A blunder in time trouble.} ( 35...Qe5 $1 {[%c_effect e5;square;e5;type;GreatFind;persistent;true] is the right way to win. The rook has no good squares.} 36.Rh6 Nf4 {winning material.} ) 36.Bxc8 Bxg2+ ( {After} 36...Rxg2 {White is saved by} 37.Rxc6 $1 {[%c_effect c6;square;c6;type;GreatFind;persistent;true] and the game ends in a draw, for example:} 37...Rg1+ 38.Kh2 Qxc6 39.Qxd4+ Kg8 40.Rg3+ Rxg3 41.Nxg3 Qxc8 42.Nh5 $1 {[%c_effect h5;square;h5;type;GreatFind;persistent;true]} 42...Nf5 43.Qg4+ ) 37.Kh2 Qxc8 38.Ng3 $4 {[%c_effect g3;square;g3;type;Blunder;persistent;true] The last mistake in this dramatic game. It's certainly not easy to find the only saving move with little time on the clock.} ( 38.Qh6 $1 {[%c_effect h6;square;h6;type;GreatFind;persistent;true] The position is totally chaotic, but the machine indicates equality. The pieces are in almost random positions and it's very difficult to play when there are no recognizable patterns.} 38...Ng8 39.Rf8 Qc7+ 40.Rg3 {Somehow there are many drawing variations here. Let's see one of them:} 40...Bxf1 41.Qf6+ Rg7 ( 41...Qg7 $4 {[%c_effect g7;square;g7;type;Blunder;persistent;true]} 42.Rxg4 Qxf6 43.Rgxg8# ) 42.Qxg7+ Qxg7 43.Rxg7 Kxg7 44.Rxf1 Ng5 45.a4 Ne7 46.a5 Nc6 47.a6 ) 38...Bd5 $1 {[%c_effect d5;square;d5;type;GreatFind;persistent;true] Black is winning again.} 39.Qe2 ( 39.Kxh3 Rg6+ ) 39...Rh4 40.Qe5 Nf4+ {Mate is inevitable:} ( 40...Nf4+ 41.Kg1 Qc1+ 42.Kf2 ( 42.Nf1 Rh1+ ) 42...Rh2# ) 0-1

[Event "E World Cup 2023"]
[Site "Chess.com"]
[Date "2023.08.05"]
[Round "3"]
[White "Svidler, Peter"]
[Black "Van Foreest, Jorden"]
[Result "1-0"]
[WhiteElo "2688"]
[BlackElo "2693"]
[ECO "B95"]
[EventDate "2023.??.??"]
[Annotator "rafael"]
[PlyCount "53"]
[Beauty "8247545179656"]
[EventType "team-tourn"]
[EventCountry "FID"]
[TimeControl "40/5400+30:1800+30"]

1.e4 c5 2.Nf3 d6 3.d4 cxd4 4.Nxd4 Nf6 5.Nc3 a6 6.Bg5 e6 7.Qe2 {A common square for the queen, but not very popular without playing 7.f4 first. Svidler had tried this move before in 2023.} 7...Be7 8.h4 {It becomes clear that White has no intention of playing f2-f4 and is aiming for a new way of playing against the Najdorf. This is a flexible move that fulfills many functions: It defends the h4-bishop, starts the kingside pawn advance, and paves the way for the rook development on h3.} 8...h6 ( 8...b5 {is also a very sensible move and was played against Svidler:} 9.a3 Bb7 10.O-O-O Nbd7 11.g4 Rc8 12.Bxf6 Bxf6 13.g5 Bxd4 14.Rxd4 Rxc3 $5 {[%c_effect c3;square;c3;type;Interesting;persistent;true]} ( 14...h6 {is the computer's suggestion.} ) 15.bxc3 Qa5 16.Kb2 Nc5 {with a complicated game in Svidler-Hakobyan, Aimchess (rapid) 2023.} ) 9.Bd2 ( 9.Be3 {has also been played before.} ) 9...Qb6 {A typical move in the Sicilian, forcing the knight back.} ( 9...b5 {is also playable when White must play} 10.a3 {preventing b5-b4.} ) 10.Nb3 h5 {The first new move of the game. Van Foreest avoids the advance of g2-g4.} ( 10...Qc7 11.g4 {was played in Bakre-Sriram, Mumbai 2003.} ) 11.O-O-O Qc7 12.Rh3 {One of the main ideas of White's setup is this typical rook lift on the third rank. The rook is now able to attack and defend at the same time.} ( 12.f3 {is a serious alternative, followed by g4.} ) 12...Nbd7 {It's also possible to develop the knight on c6, for instance:} ( 12...b5 13.a3 Nc6 {The knight is useful to support the b5-b4 advance.} ) 13.Rg3 g6 ( 13...O-O {This shows the difference between computer chess and human chess. My machine is not afraid of castling with this scary rook on g3 and many attacking ideas for White. This is a move I'd not even consider in this position with the pawn still on g7.} ) 14.Bg5 {The bishop is back to an attacking post.} 14...b5 15.a3 {A necessary move to avoid b5-b4.} 15...Bb7 16.Qe1 {White has other possibilities, and in general Svidler got exactly what he wanted from the opening: a double-edged fight without theory.} ( 16.Kb1 ) ( 16.f4 ) 16...Rc8 {A good move, developing the rook. Castling on the queenside is not really an option.} ( 16...O-O-O $2 {[%c_effect c8;square;c8;type;Mistake;persistent;true] is very dangerous with this rook on g3 possibly going to the queenside. White has many winning continuations:} 17.Bxb5 ( 17.Nxb5 axb5 18.Nd4 {is good enough for a winning attack.} ) ( 17.a4 b4 18.Rd4 $1 {[%c_effect d4;square;d4;type;GreatFind;persistent;true]} 18...bxc3 19.Rxc3 Nc5 20.e5 dxe5 21.Rdc4 {is also very good for White.} ) 17...axb5 18.Nxb5 Qb6 19.Qb4 {with a decisive attack.} ) 17.Bd3 Nc5 $6 {[%c_effect c5;square;c5;type;Inaccuracy;persistent;true] It turns out this move is not very useful for Black.} ( 17...d5 {is an option, although it looks crazy to open the game with the king in the middle. But after} 18.exd5 Nxd5 {the computer finds nothing clearcut for White and evaluates the position as equal.} ) 18.Kb1 {The good old Kb1 is always necessary in the Sicilian.} 18...O-O {This move was criticized by Svidler in the post-game interview, but it's not so bad according to the machine. The problem is that it's not easy to play with Black: He has no clear way of developing the attack on the queenside, and the king has no safe place to hide.} ( 18...Nxd3 $2 {[%c_effect d3;square;d3;type;Mistake;persistent;true]} 19.Rgxd3 O-O 20.f3 {followed by g4 with a strong attack.} ) ( 18...Nxb3 19.cxb3 O-O {is possible, but Black will face a strong attack.} ) 19.Nxc5 dxc5 ( 19...Qxc5 {Svidler expected this capture. White keeps the initiative with} 20.f4 ) 20.e5 Nd5 $2 {[%c_effect d5;square;d5;type;Mistake;persistent;true] This is a big mistake.} ( 20...Ng4 $1 {[%c_effect g4;square;g4;type;GreatFind;persistent;true] is the only way to survive. After} 21.Bxe7 Qxe7 22.f3 Nh6 {it seems that Black's position is not as bad as it looks. Even so, White keeps fierce pressure with the accurate} 23.Ne2 $1 {[%c_effect e2;square;e2;type;GreatFind;persistent;true] The game may continue:} 23...c4 24.Bxg6 $1 {[%c_effect g6;square;g6;type;GreatFind;persistent;true]} 24...fxg6 25.Rxg6+ Kh7 26.Rg5 {Followed by Ng3 and capturing the pawn on h5 with the advantage for White.} ) 21.Nxd5 Bxd5 22.Qe3 $1 {[%c_effect e3;square;e3;type;GreatFind;persistent;true] All of White's pieces take part in the attack now, while Black's king is unprotected. Even the rook on d1 will play a key role, as the game will show.} 22...c4 23.Bxg6 $1 {[%c_effect g6;square;g6;type;GreatFind;persistent;true] The deadly blow.} 23...fxg6 24.Bxe7 Qxe7 25.Rxg6+ Kh8 26.Rh6+ ( 26.Qh6+ {also wins:} 26...Qh7 27.Rxd5 $1 {[%c_effect d5;square;d5;type;GreatFind;persistent;true]} 27...exd5 ( 27...Qxh6 28.Rxh6+ Kg7 29.Rxe6 ) 28.Qg5 {Followed by 29.Rh6.} ) 26...Kg7 ( 26...Kg8 {loses to} 27.Qg3+ Qg7 ( 27...Kf7 28.Rh7+ ) 28.Rg6 ) 27.Rxh5 $1 {[%c_effect h5;square;h5;type;GreatFind;persistent;true] Black has no defense, and van Foreest didn't bother to check Svidler's accuracy.} ( 27.Rxh5 Rg8 ( 27...Rh8 28.Qg3+ Kf7 29.Qf4+ Kg7 30.Rg5+ Kh7 31.Rxd5 exd5 32.Qf5+ Kh6 33.Qg6# ) ( 27...Kg6 28.Rh6+ Kg7 29.Rd4 $1 {[%c_effect d4;square;d4;type;GreatFind;persistent;true] The rook joins the attack, and the game is over.} ) 28.Rxd5 $1 {[%c_effect d5;square;d5;type;GreatFind;persistent;true]} 28...exd5 29.Qh6+ Kf7 30.Qh7+ Rg7 ( 30...Kf8 31.Qf5+ Kg7 32.Rh7# ) 31.Qf5+ {Picking up the rook on c8.} ) 1-0